Cogmind - Beta 16 @@@ ROGUE MODE // 2026.02.01 @ 00:51:48 Player: Artackni Result: Destroyed by G-67 Veteran with Field Laser Performance ------------- Evolutions (6) 3000 Regions Visited (10) 2000 Robots Destroyed (0) 0 Value Destroyed (0) 0 Prototype IDs (0) 0 Alien Tech Used (0) 0 Bonus (3480) 3480 TOTAL SCORE: 8480 Bonus ------- Pacifist 2680 Entered DSFs 500 Aligned with FarCom 300 Cogmind --------- Core Integrity 0/1150 Matter 300/300 Energy 99/100 System Corruption 2% Temperature Cool (37) Movement Core (50) Location -4/Factory Parts ------- > --- POWER (13) ------- (None) > --- PROPULSION (2) --- (None) > --- UTILITY (2) ------ (None) > --- WEAPON (2) ------- (None) > --- INVENTORY (5) ---- (None) Peak State ------------ None Favorites ----------- Power None Propulsion None Utility None Weapon None Build | -11 -10 -10 -10 -9 -8 -7 -6 -5 -5 -4 ------- Run | Yrd Mat Min Exi Min Mat Fac Fac Fac DSF Fac Slots Evolved 12 | . . . . . 4 2 2 2 . 2 Power 12 | . . . . . 4 2 2 2 . 2 Propulsion . | . . . . . . . . . . . Utility . | . . . . . . . . . . . Weapon . | . . . . . . . . . . . Parts Attached . | . . . . . . . . . . . Power . | . . . . . . . . . . . Engine . | . . . . . . . . . . . Core . | . . . . . . . . . . . Reactor . | . . . . . . . . . . . Propulsion . | . . . . . . . . . . . Treads . | . . . . . . . . . . . Leg . | . . . . . . . . . . . Wheel . | . . . . . . . . . . . Hover . | . . . . . . . . . . . Flight . | . . . . . . . . . . . Utility . | . . . . . . . . . . . Device . | . . . . . . . . . . . Storage . | . . . . . . . . . . . Processor . | . . . . . . . . . . . Hackware . | . . . . . . . . . . . Protection . | . . . . . . . . . . . Artifact . | . . . . . . . . . . . Weapon . | . . . . . . . . . . . Energy Gun . | . . . . . . . . . . . Energy Cannon . | . . . . . . . . . . . Ballistic Gun . | . . . . . . . . . . . Ballistic Cannon . | . . . . . . . . . . . Launcher . | . . . . . . . . . . . Special Weapon . | . . . . . . . . . . . Impact Weapon . | . . . . . . . . . . . Slashing Weapon . | . . . . . . . . . . . Piercing Weapon . | . . . . . . . . . . . Special Melee Weapon . | . . . . . . . . . . . Unidentified Prototypes . | . . . . . . . . . . . Parts Lost . | . . . . . . . . . . . Power . | . . . . . . . . . . . Propulsion . | . . . . . . . . . . . Utility . | . . . . . . . . . . . Weapon . | . . . . . . . . . . . Highest Loss Streak . | . . . . . . . . . . . To Critical Strikes . | . . . . . . . . . . . Average Backups . | . . . . . . . . . . . Power . | . . . . . . . . . . . Propulsion . | . . . . . . . . . . . Utility . | . . . . . . . . . . . Weapon . | . . . . . . . . . . . Tool/Special . | . . . . . . . . . . . Unused Backups . | . . . . . . . . . . . Power . | . . . . . . . . . . . Propulsion . | . . . . . . . . . . . Utility . | . . . . . . . . . . . Weapon . | . . . . . . . . . . . Tool/Special . | . . . . . . . . . . . Average Slot Usage (%) . | . . . . . . . . . . . Peak Build Rating . | . . . . . . . . . . . Average Rating . | . . . . . . . . . . . On Entrance . | . . . . . . . . . . . Avg Prop Armor Cover (%) . | . . . . . . . . . . . Naked Turns 1742 | . 37 158 80 161 152 164 287 195 29 479 Heaviest Build . | . . . . . . . . . . . Greatest Support 3 | 3 3 3 3 3 3 3 3 3 3 3 Greatest Overweight (x) . | . . . . . . . . . . . Average Overweight (x) . | . . . . . . . . . . . Largest Inventory Capacity 5 | 5 5 5 5 5 5 5 5 5 5 5 Average Capacity 5 | 5 5 5 5 5 5 5 5 5 5 5 Most Carried . | . . . . . . . . . . . Average Carried . | . . . . . . . . . . . Final Capacity 5 | 5 5 5 5 5 5 5 5 5 5 5 Final Carried . | . . . . . . . . . . . Class Distribution -------------------- 100% | Mutant Dominant Class ---------------- Mutant | -10/Materials Mutant | -10/Mines Mutant | -10/Exiles Mutant | -9/Mines Mutant | -8/Materials Mutant | -7/Factory Mutant | -6/Factory Mutant | -5/Factory Mutant | -5/DSF Mutant | -4/Factory Resources | -11 -10 -10 -10 -9 -8 -7 -6 -5 -5 -4 ----------- Run | Yrd Mat Min Exi Min Mat Fac Fac Fac DSF Fac Matter Collected 200 | 102 . 98 . . . . . . . . Remotely . | . . . . . . . . . . . Salvage Created . | . . . . . . . . . . . Parts . | . . . . . . . . . . . Haulers Intercepted . | . . . . . . . . . . . Recyclers Shooed 2 | . . . . . 2 . . . . . Parts Field Recycled . | . . . . . . . . . . . Retrieved Matter . | . . . . . . . . . . . Parts Self-Destructed . | . . . . . . . . . . . Prevented . | . . . . . . . . . . . Parts Restored . | . . . . . . . . . . . Kills | -11 -10 -10 -10 -9 -8 -7 -6 -5 -5 -4 ------- Run | Yrd Mat Min Exi Min Mat Fac Fac Fac DSF Fac Combat Hostiles Destroyed . | . . . . . . . . . . . Classes Destroyed . | . . . . . . . . . . . Best Kill Streak . | . . . . . . . . . . . Combat Bots Only . | . . . . . . . . . . . Max Kills in Single Turn . | . . . . . . . . . . . Gunslinging . | . . . . . . . . . . . Exploded . | . . . . . . . . . . . Melee . | . . . . . . . . . . . Uniques/NPCs Destroyed . | . . . . . . . . . . . Combat | -11 -10 -10 -10 -9 -8 -7 -6 -5 -5 -4 -------- Run | Yrd Mat Min Exi Min Mat Fac Fac Fac DSF Fac Hostile Shots Fired 207 | . 2 4 . 4 13 . 87 . 16 81 Missed 82 | . 1 . . 1 8 . 40 . 5 27 Hits 125 | . 1 4 . 3 5 . 47 . 11 54 Projectile 125 | . 1 4 . 3 5 . 47 . 11 54 AOE 4 | . . 4 . . . . . . . . Critical Strikes 7 | . . . . . 1 . 1 . 1 4 Damage Taken 2365 | . 58 144 . 31 89 . 690 . 196 1157 Core 2365 | . 58 144 . 31 89 . 690 . 196 1157 Absorbed by Shields . | . . . . . . . . . . . Core Remaining (%) 64 | 100 . . . 6 83 100 18 . 80 . Volleys Fired . | . . . . . . . . . . . Largest . | . . . . . . . . . . . Hottest . | . . . . . . . . . . . Shots Fired . | . . . . . . . . . . . Gun . | . . . . . . . . . . . Cannon . | . . . . . . . . . . . Launcher . | . . . . . . . . . . . Special . | . . . . . . . . . . . Kinetic . | . . . . . . . . . . . Thermal . | . . . . . . . . . . . Explosive . | . . . . . . . . . . . Electromagnetic . | . . . . . . . . . . . Robot Hit Streak . | . . . . . . . . . . . Robot Miss Streak . | . . . . . . . . . . . Penetration Max . | . . . . . . . . . . . Secondary Targets . | . . . . . . . . . . . Shots Hit Robots . | . . . . . . . . . . . Core Hits 4 | . . . . . 2 . 2 . . . Critical Kills . | . . . . . . . . . . . Critical Parts Destroyed . | . . . . . . . . . . . Critical Strikes . | . . . . . . . . . . . Melee Attacks . | . . . . . . . . . . . Impact . | . . . . . . . . . . . Slashing . | . . . . . . . . . . . Piercing . | . . . . . . . . . . . Sneak Attacks . | . . . . . . . . . . . Combat Hostiles . | . . . . . . . . . . . Follow-up Attacks . | . . . . . . . . . . . Damage Inflicted 121 | . . 3 . . 32 . 41 . . 45 Guns . | . . . . . . . . . . . Cannons . | . . . . . . . . . . . Explosions . | . . . . . . . . . . . Melee . | . . . . . . . . . . . Ramming 121 | . . 3 . . 32 . 41 . . 45 Kinetic . | . . . . . . . . . . . Thermal . | . . . . . . . . . . . Explosive . | . . . . . . . . . . . Electromagnetic . | . . . . . . . . . . . Impact . | . . . . . . . . . . . Slashing . | . . . . . . . . . . . Piercing . | . . . . . . . . . . . Highest Corruption 2 | . . . . . . . 2 . . 2 Average Corruption 2 | . . . . . . . 2 . . 2 Corruption Purged . | . . . . . . . . . . . Corruption Blocked . | . . . . . . . . . . . Overload Shots . | . . . . . . . . . . . Overflow Damage . | . . . . . . . . . . . Projectiles . | . . . . . . . . . . . Explosions . | . . . . . . . . . . . Melee . | . . . . . . . . . . . Knockbacks 2 | . . . . . 1 . . . . 1 Impact 2 | . . . . . 1 . . . . 1 Kinetic . | . . . . . . . . . . . Secondary . | . . . . . . . . . . . Self-Inflicted Damage 53 | . . 1 . . 15 . 17 . . 20 Shots . | . . . . . . . . . . . Rammed 28 | . . 1 . . 7 . 12 . . 8 Targets Rammed 28 | . . 1 . . 7 . 12 . . 8 Kicked . | . . . . . . . . . . . Crushed . | . . . . . . . . . . . Highest Temperature . | . . . . . . . . . . . Average Temperature . | . . . . . . . . . . . Received Heat Transfer 379 | . 6 . . 18 45 . 51 . 42 217 Siege Activations . | . . . . . . . . . . . Martial Activations . | . . . . . . . . . . . Shielding Activations . | . . . . . . . . . . . Robots Disrupted . | . . . . . . . . . . . Combat Hostiles . | . . . . . . . . . . . Robots Corrupted . | . . . . . . . . . . . Combat Hostiles . | . . . . . . . . . . . Parts Fried . | . . . . . . . . . . . Impact Corruptions . | . . . . . . . . . . . Robots Melted . | . . . . . . . . . . . Combat Hostiles . | . . . . . . . . . . . Parts Melted . | . . . . . . . . . . . Heat Transferred . | . . . . . . . . . . . Parts Sabotaged . | . . . . . . . . . . . Parts Stolen . | . . . . . . . . . . . Parts Stripped . | . . . . . . . . . . . Power Chain Reactions . | . . . . . . . . . . . Alert | -11 -10 -10 -10 -9 -8 -7 -6 -5 -5 -4 ------- Run | Yrd Mat Min Exi Min Mat Fac Fac Fac DSF Fac Maximum Alert Level . | . . . . . . . . . . . Low Security (%) 100 | 100 100 100 . 100 100 100 100 100 100 100 Level 1 . | . . . . . . . . . . . Level 2 . | . . . . . . . . . . . Level 3 . | . . . . . . . . . . . Level 4 . | . . . . . . . . . . . Level 5 . | . . . . . . . . . . . High Security . | . . . . . . . . . . . Max Security . | . . . . . . . . . . . Peak Influence 132 | . . 30 . 35 30 . 20 14 15 132 Initial 7 | . . . . . . . . 4 . 7 Average 15 | . . 5 . 12 10 . 3 1 2 41 Influence Increases 464 | . . 30 . 45 57 . 59 14 15 244 Destroy 0b10 Robot/C 40 | . . . . . 40 . . . . . Destroy 0b10 Robot/NC 5 | . . . . . 5 . . . . . Destroy Leader 12 | . . . . . 12 . . . . . Successful Hack 32 | . . . . . . . 14 14 . 4 Partial Spotted 15 | . . . . . . . . . . 15 Lose Combat Pursuer 360 | . . 30 . 45 . . 45 . 15 225 Influence Decreases 332 | . . 10 20 45 57 . 49 24 . 127 Entered New Map 34 | . . . 20 . . . . 6 . 8 Time Decay 281 | . . 10 . 45 40 . 49 18 . 119 Lost Ally 17 | . . . . . 17 . . . . . Squads Dispatched 7 | . . . . . 1 . 2 . . 4 Investigation 1 | . . . . . . . . . . 1 Extermination 3 | . . . . . . . 1 . . 2 Reinforcement 3 | . . . . . 1 . 1 . . 1 Assault . | . . . . . . . . . . . Garrison . | . . . . . . . . . . . Intercept . | . . . . . . . . . . . Searches Triggered . | . . . . . . . . . . . Construction Impeded . | . . . . . . . . . . . Haulers Reinforced . | . . . . . . . . . . . Active Scanning Responses . | . . . . . . . . . . . Cargo Convoy Interrupts . | . . . . . . . . . . . Stealth | -11 -10 -10 -10 -9 -8 -7 -6 -5 -5 -4 --------- Run | Yrd Mat Min Exi Min Mat Fac Fac Fac DSF Fac Distress Signals 11 | . 1 . . . 5 . 1 . . 4 Communications Jammed . | . . . . . . . . . . . Distress Signals . | . . . . . . . . . . . Times Spotted 64 | . 4 4 . 3 7 . 12 . 3 31 Peak Tracking Total 15 | . 6 5 . 3 5 . 7 . 2 15 Tactical Retreats 14 | . . 2 . 1 . . 3 . 1 7 Traps | -11 -10 -10 -10 -9 -8 -7 -6 -5 -5 -4 ------- Run | Yrd Mat Min Exi Min Mat Fac Fac Fac DSF Fac Traps Triggered 7 | . 1 . . . . 1 3 . 1 1 Indirectly . | . . . . . . . . . . . Trap Hack Attempts . | . . . . . . . . . . . Triggered . | . . . . . . . . . . . Disarmed . | . . . . . . . . . . . Reprogrammed . | . . . . . . . . . . . Reused . | . . . . . . . . . . . Traps Extracted . | . . . . . . . . . . . Installed . | . . . . . . . . . . . Triggered . | . . . . . . . . . . . Machines | -11 -10 -10 -10 -9 -8 -7 -6 -5 -5 -4 ---------- Run | Yrd Mat Min Exi Min Mat Fac Fac Fac DSF Fac Machines Disabled . | . . . . . . . . . . . Max in Single Turn . | . . . . . . . . . . . Garrison Access 1 | . . . . . . 1 . . . . Machines Repaired . | . . . . . . . . . . . Machines Dismantled . | . . . . . . . . . . . Machines Sabotaged . | . . . . . . . . . . . Overloaded Fab Kills . | . . . . . . . . . . . Hacking | -11 -10 -10 -10 -9 -8 -7 -6 -5 -5 -4 --------- Run | Yrd Mat Min Exi Min Mat Fac Fac Fac DSF Fac Machines Accessed 12 | . 1 1 . . 1 2 3 2 . 2 Terminals 10 | . 1 . . . 1 1 3 2 . 2 Fabricators . | . . . . . . . . . . . Repair Stations . | . . . . . . . . . . . Recycling Units . | . . . . . . . . . . . Scanalyzers . | . . . . . . . . . . . Garrison Access 1 | . . . . . . 1 . . . . Total Hacks 23 | . 1 1 . . 1 2 6 3 . 9 Successful 8 | . 1 1 . . . 1 1 2 . 2 Failed 15 | . . . . . 1 1 5 1 . 7 Catastrophic 5 | . . . . . 1 . 3 . . 1 Database Lockouts . | . . . . . . . . . . . Manual 8 | . 1 . . . 1 1 2 . . 3 Terminals 21 | . 1 . . . 1 1 6 3 . 9 Fabricators . | . . . . . . . . . . . Repair Stations . | . . . . . . . . . . . Recycling Units . | . . . . . . . . . . . Scanalyzers . | . . . . . . . . . . . Garrison Access 1 | . . . . . . 1 . . . . Terminal Hacks 7 | . 1 1 . . . . 1 2 . 2 Open Door 1 | . . 1 . . . . . . . . Open DSF 2 | . . . . . . . . 1 . 1 Branch Access Points 1 | . 1 . . . . . . . . . Emergency Access Points 2 | . . . . . . . 1 . . 1 Locate Traps 1 | . . . . . . . . 1 . . Fabricator Hacks . | . . . . . . . . . . . Repair Station Hacks . | . . . . . . . . . . . Recycling Unit Hacks . | . . . . . . . . . . . Scanalyzer . | . . . . . . . . . . . Garrison Access Hacks 1 | . . . . . . 1 . . . . Seal Access 1 | . . . . . . 1 . . . . Unauthorized Hacks . | . . . . . . . . . . . Terminals . | . . . . . . . . . . . Fabricators . | . . . . . . . . . . . Repair Stations . | . . . . . . . . . . . Recycling Units . | . . . . . . . . . . . Scanalyzers . | . . . . . . . . . . . Garrison Access . | . . . . . . . . . . . Data Cores Recovered . | . . . . . . . . . . . Used . | . . . . . . . . . . . Hacking Detections 7 | . . . . . 1 . 3 1 . 2 Full Trace Events 1 | . . . . . . . . . . 1 Feedback Events . | . . . . . . . . . . . Feedback Blocked . | . . . . . . . . . . . Robot Schematics Acquired . | . . . . . . . . . . . Robots Built . | . . . . . . . . . . . Authchips . | . . . . . . . . . . . Time . | . . . . . . . . . . . Total Robot Build Rating . | . . . . . . . . . . . Part Schematics Acquired . | . . . . . . . . . . . Parts Built . | . . . . . . . . . . . Authchips . | . . . . . . . . . . . Time . | . . . . . . . . . . . Total Part Build Rating . | . . . . . . . . . . . Part Studies Acquired . | . . . . . . . . . . . Parts Repaired . | . . . . . . . . . . . Time . | . . . . . . . . . . . Parts Recycled . | . . . . . . . . . . . Recycled Matter . | . . . . . . . . . . . Retrieved Matter . | . . . . . . . . . . . Retrieved Components . | . . . . . . . . . . . Parts Scanalyzed . | . . . . . . . . . . . Part Schematics Acquired . | . . . . . . . . . . . Parts Damaged . | . . . . . . . . . . . Bothacking | -11 -10 -10 -10 -9 -8 -7 -6 -5 -5 -4 ------------ Run | Yrd Mat Min Exi Min Mat Fac Fac Fac DSF Fac Used RIF Installer . | . . . . . . . . . . . Robots Hacked . | . . . . . . . . . . . Non-combat . | . . . . . . . . . . . Combat . | . . . . . . . . . . . Robot Hacks Applied . | . . . . . . . . . . . Relay Couplers Released . | . . . . . . . . . . . Fabnet Peak Effective % . | . . . . . . . . . . . Robots Rewired . | . . . . . . . . . . . Allies Hacked . | . . . . . . . . . . . Hacks Repelled . | . . . . . . . . . . . Allies | -11 -10 -10 -10 -9 -8 -7 -6 -5 -5 -4 -------- Run | Yrd Mat Min Exi Min Mat Fac Fac Fac DSF Fac Total Allies 1 | . . . . 1 . . . . . . Largest Group 1 | . . . . . 1 . . . . . Highest-Rated Group 31 | . . . . . 31 . . . . . Highest-Rated Ally 31 | . . . . . 31 . . . . . Total Orders . | . . . . . . . . . . . Ally Attacks 16 | . . . . . 16 . . . . . Total Damage 273 | . . . . . 273 . . . . . Kills 3 | . . . . . 3 . . . . . Allies Corrupted . | . . . . . . . . . . . Allies Melted 1 | . . . . 1 . . . . . . Intel | -11 -10 -10 -10 -9 -8 -7 -6 -5 -5 -4 ------- Run | Yrd Mat Min Exi Min Mat Fac Fac Fac DSF Fac Active Infowar (turns) . | . . . . . . . . . . . Robot Analysis Total . | . . . . . . . . . . . Derelict Logs Recovered 2 | . . . . 2 . . . . . . Drone Launches . | . . . . . . . . . . . Drone Recoveries . | . . . . . . . . . . . Exploration | -11 -10 -10 -10 -9 -8 -7 -6 -5 -5 -4 ------------- Run | Yrd Mat Min Exi Min Mat Fac Fac Fac DSF Fac Turns Passed 1752 | 10 37 158 80 161 152 164 287 195 29 479 Spaces Moved 3084 | 20 74 313 160 256 289 298 527 390 58 699 Core 3084 | 20 74 313 160 256 289 298 527 390 58 699 Treads . | . . . . . . . . . . . Legs . | . . . . . . . . . . . Wheels . | . . . . . . . . . . . Hover . | . . . . . . . . . . . Flight . | . . . . . . . . . . . Fastest Speed 50 | 50 50 50 50 50 50 50 50 50 50 50 Average Speed 50 | 50 50 50 50 50 50 50 50 50 50 50 Slowest Speed 50 | 50 50 50 50 50 50 50 50 50 50 50 Overloaded Moves . | . . . . . . . . . . . Propulsion Burnouts . | . . . . . . . . . . . Robots Hopped . | . . . . . . . . . . . Potential Cave-ins . | . . . . . . . . . . . Cave-ins Triggered . | . . . . . . . . . . . Exploration Rate (%) 34 | 4 31 83 37 74 24 10 18 10 68 22 Regions Visited 10 Branch Regions 3 Pre-discovered Areas . | . . . . . . . . . . . Known Exits Taken 3 | . 1 . . 1 . . . 1 . . Unknown Exits Taken 6 | 1 . 1 1 . 1 1 1 . . . Scrap Searched 2 | . . 1 . 1 . . . . . . Spaces Dug . | . . . . . . . . . . . Terrain Destroyed . | . . . . . . . . . . . Melee . | . . . . . . . . . . . Projectile . | . . . . . . . . . . . AOE . | . . . . . . . . . . . Terrain Rammed . | . . . . . . . . . . . Walls Destroyed . | . . . . . . . . . . . Machines Disabled . | . . . . . . . . . . . Actions | -11 -10 -10 -10 -9 -8 -7 -6 -5 -5 -4 --------- Run | Yrd Mat Min Exi Min Mat Fac Fac Fac DSF Fac Total 3282 | 19 73 313 159 288 295 312 549 389 57 828 Wait 165 | . . . . 33 . . 11 . . 121 Move 3074 | 19 73 312 159 255 288 297 526 389 57 699 Hop . | . . . . . . . . . . . Pick Up . | . . . . . . . . . . . Fast Attach . | . . . . . . . . . . . Attach . | . . . . . . . . . . . Detach . | . . . . . . . . . . . Swap . | . . . . . . . . . . . Drop . | . . . . . . . . . . . Fire . | . . . . . . . . . . . Melee . | . . . . . . . . . . . Ram 28 | . . 1 . . 7 . 12 . . 8 Kick . | . . . . . . . . . . . Crush . | . . . . . . . . . . . Escape Stasis 15 | . . . . . . 15 . . . . Rewire . | . . . . . . . . . . . Trap . | . . . . . . . . . . . Miscellaneous . | . . . . . . . . . . . Route ------- -11/Scrapyard -10/Materials -10/Mines (discovered 2 exits: [*Mat] / [*Exi]) -10/Exiles -9/Mines -8/Materials -7/Factory -6/Factory -5/Factory -5/DSF -4/Factory History --------- Turn | Location | Event 4 | -11/Scrapyard | Discovered new exit (range 12) 11 | -11/Scrapyard | Entered Materials 28 | -10/Materials | Identified exit to Mines 48 | -10/Materials | Entered Mines 68 | -10/Mines | Received a Rocket Launcher from a helpful Derelict 109 | -10/Mines | Assembled infested the area 118 | -10/Mines | Met a Derelict who couldn't figure out how to use a Trap Extractor 141 | -10/Mines | Core integrity fell below 50% 141 | -10/Mines | Core integrity fell below 20% 155 | -10/Mines | Discovered new exit (range 11) 203 | -10/Mines | Deemed a non-threat by the Exiles lab entrance 204 | -10/Mines | Discovered new exit (range 5) 206 | -10/Mines | Entered Exiles 213 | -10/Exiles | Discovered new exit (range 15) 219 | -10/Exiles | Met 8R-AWN 228 | -10/Exiles | Met EX-HEX 241 | -10/Exiles | Met EX-BIN 248 | -10/Exiles | Aligned with FarCom system 249 | -10/Exiles | Given EX-Vault access code 286 | -10/Exiles | Entered Mines 299 | -9/Mines | Met a Derelict bent on vengeance 305 | -9/Mines | Build established: Mutant 386 | -9/Mines | Learned Materials emergency access door positions 392 | -9/Mines | Identified exit to Materials 444 | -9/Mines | Received a Mining Laser from a helpful Derelict 447 | -9/Mines | Entered Materials 447 | -8/Materials | Accompanied by 1 ally 447 | -8/Materials | Evolved 4 slots: Power x4 594 | -8/Materials | Discovered new exit (range 10) 599 | -8/Materials | Entered Factory 599 | -7/Factory | Evolved 2 slots: Power x2 760 | -7/Factory | Discovered new exit (range 8) 763 | -7/Factory | Entered another Factory area 763 | -6/Factory | Evolved 2 slots: Power x2 1031 | -6/Factory | Core integrity fell below 50% 1043 | -6/Factory | Discovered new exit (range 15) 1049 | -6/Factory | Core integrity fell below 20% 1050 | -6/Factory | Entered another Factory area 1050 | -5/Factory | Evolved 2 slots: Power x2 1245 | -5/Factory | Identified exit to DSF 1245 | -5/Factory | Entered DSF 1265 | -5/DSF | Additional patrols routed to DSF 1267 | -5/DSF | Discovered new exit (range 15) 1274 | -5/DSF | Entered Factory 1274 | -4/Factory | Evolved 2 slots: Power x2 1541 | -4/Factory | Spotted B-86 Titan 1723 | -4/Factory | Core integrity fell below 50% 1743 | -4/Factory | Core integrity fell below 20% 1753 | -4/Factory | Destroyed by G-67 Veteran with Field Laser Last Messages --------------- 01721_ O-16 Technician sends out distress signal. 01728_ Terminal disabled. 01729_ Penetrated by Slug. 01729_ Slug penetrates P-70 Sage. 01729_ Slammed into H-77 Assassin. 01730_ Slug penetrates Wall. 01730_ Penetrated by Slug. 01730_ Slammed into H-77 Assassin. 01732_ Penetrated by Slug. 01732_ Slammed into H-77 Assassin. 01732_ Destabilizing: System corrupted (+2). 01733_ Slug penetrates Wall. 01733_ Assembly Bed disabled. 01735_ Triggered Ambush Trap. 01735_ B-60 Warrior emerges from a hatch in the floor. 01735_ L-61 Swordsman emerges from a hatch in the floor. 01735_ G-67 Veteran emerges from a hatch in the floor. 01736_ Slammed into G-67 Veteran. 01737_ Slug penetrates Wall. 01753_ Critical hit (Burn: +50). Map ----- +----------------------------------------------------+ | ?????????????????????????????????????????????????? | | ?????????????????????????????????????????????????? | | ??????????????? ?????????????????????????????????? | | ?????????????? ???????????????????????????????? | | ??????????????! #??????????????????????????????? | | ????????????? #??????????????????????????????? | | ????????????? +??????????????????????????????? | | ???????????? #??????????????????????????????? | | ???????????? #??????????????????????????????? | | ??????????? #??????????????????????????????? | | ??????????? #??????????????????????????????? | | ?????????? #??????????????????????????????? | | ?????????? #??????????????????????????????? | | ????????? #??????????????????????????????? | | ######### #??????????????????????????????? | | % + #? ??????????????????????????? | | ######### ## #?????????????????????????? | | ############### #?????????????????????????? | | "" # !! ! ## #?????????????????????????? | | "" # !! ## #?????????????????????????? | | "" # ! !## ##????????????????????????? | | ?# = ## ?????????????????????????? | | #"#### ]## #?????????????????????????? | | #######+######## #?????????????????????????? | | l #######/#######????????????????????? | | + g @ #????????????????????? | | pp# gg #????????????????????? | | ######"#### """""""""g #????????????????????? | | #####????###??# #????????????????????? | | ??????????????# """"""""" #????????????????????? | | ??????????????# #????????????????????? | | ??????????????###############????????????????????? | | | | | | | | | | | | | | | | | | | | | | | | | | | | | | | | | | | | | +----------------------------------------------------+ Best States ------------- Heat Dissipation 43 Energy Generation 5 Energy Capacity 100 Matter Stores 300 Matter Capacity 300 Sight Range 16 Terrain Scan Density 10 Evasion (%) 50 Item Schematics ----------------- None Robot Schematics ------------------ None Fabricated ------------ Nothing Repaired ---------- Nothing Studied --------- None Alien Tech Used ----------------- None Achievements -------------- None Challenges ------------ None Game ------ Seed SignalMasterFacilitator Manual? 0 Play Time 00:17:35 Cumulative 126.4 hours Start 2026.02.01 @ 00:34:52 End 2026.02.01 @ 00:51:48 Sessions 1 Manual Loads 0 Difficulty Rogue Special Mode None Game No. 61 Rogue 61 Adventurer 0 Explorer 0 Win Type - Total 6 Types 5/0/1/0/0/0/0/0/0/0 Lore% 59 Gallery% 63 Achievement% 56 Wizard Run 0 Options --------- Layout 0 ASCII 0 Keyboard 1 Movement Arrows Keybinds 0 Fullscreen 1 Font 18/SmallcapsGlow Map View 76x50 Zoom Use 0% Tactical HUD 1 Map Filters NONE Filters NONE Steam 1 RUN: 1c9dffbe-2605-4af7-9185-1e4024c87e04